[Event "MPL-4 Indian Chess Tour 2022"]
[Site "Chess24"]
[Date "2022.09.27"]
[Round "3.4"]
[White "Sethuraman, S.P."]
[Black "Narayanan.S.L"]
[Result "0-1"]
[ECO "E11"]
[WhiteElo "2638"]
[BlackElo "2657"]
[Annotator "TA"]
[PlyCount "82"]
[EventDate "2022.09.29"]
[EventType "tourn (rapid)"]
[EventCountry "NET"]
[SourceTitle "playchess.com"]
[Source "ChessBase"]
[SourceQuality "1"]
[WhiteTeam "India"]
[BlackTeam "India"]
[WhiteTeamCountry "IND"]
[BlackTeamCountry "IND"]
[TimeControl "900+10"]

{[%evp 15,82,0,0,-2,5,-28,18,-12,31,24,18,8,54,12,15,14,58,9,67,30,30,0,58,16,16,13,116,49,77,28,73,0,158,-2,24,0,152,-7,-12,0,89,0,0,0,0,0,0,0,30,28,14,-319,-324,-450,-440,-568,-554,-843,-838,-1091,-1068,-1436,-1294,-1194,-612,-851,-841,-2337,-2060]} 1. d4 {[%emt 0:00:00]} Nf6 {[%emt 0:00:00]} 2. c4 {[%emt 0:00:02]} e6 {[%emt 0:00:01]} 3. Nf3 {[%emt 0:00:01]} d5 {[%emt 0:00:01]} 4. g3 {[%emt 0:00:01]} Bb4+ {[%emt 0:00:12]} 5. Bd2 {[%emt 0:00:02]} Be7 {[%emt 0:00:01]} 6. Bg2 {[%emt 0:00:01]} O-O {[%emt 0:00:01]} 7. O-O {[%emt 0:00:01]} c6 {[%emt 0:00:00]} 8. Qc2 {[%emt 0:00:09]} Nbd7 {[%emt 0:00:05] Nowadays more popular than 8...b6.} 9. h4 {[%emt 0:00:03] [#] E11: Bogo-Indian.} a5 $5 $146 {[%emt 0:00:02][%mdl 8] New and interesting.} ({Predecessor:} 9... b6 10. Nc3 Ba6 11. cxd5 cxd5 12. Rfc1 Bb7 13. Bf4 Rc8 14. Qb3 a6 15. a4 h6 16. e3 Nh5 {1-0 (39) Nepomniachtchi,I (2792)-Mamedyarov,S (2758) Saint Louis 2022}) 10. Nc3 {[%emt 0:02:43]} b6 {[%emt 0:01:27]} (10... dxc4 $142 11. Nd1 b5) 11. e4 {[%emt 0:02:27] The position is equal.} Ba6 {[%emt 0:00:03]} 12. e5 {[%emt 0:00:18]} Ne8 {[%emt 0:00:03]} 13. b3 {[%emt 0:02:06]} b5 {[%emt 0:00:36]} (13... dxc4 $11 {should be considered.} 14. Ng5 g6) 14. cxb5 {[%emt 0:00:40]} cxb5 {[%emt 0:00:02]} 15. Rfe1 {[%emt 0:00:11]} Rc8 {[%emt 0:00:13] Threatens to win with ...b4.} 16. Qb1 $40 {[%emt 0:03:27][%mdl 128] Black needs to defend precisely.} (16. a3 $14) 16... Bb4 {[%emt 0:02:06]} (16... b4 $11 17. Na4 g6) 17. Rc1 {[%emt 0:00:26]} Ba3 {[%emt 0:00:29]} 18. Re1 {[%emt 0:00:09]} g6 {[%emt 0:00:47]} ({Black should play} 18... Bb4 $11 19. Qb2 (19. Ng5 g6 $11) 19... Bxc3 20. Bxc3 b4) 19. Nd1 {[%emt 0:00:40]} Ng7 {[%emt 0:00:15]} 20. Ne3 {[%emt 0:00:08]} Qb6 {[%emt 0:00:53]} (20... b4 $11) 21. Bh3 {[%emt 0:00:40]} (21. b4 $1 $16) 21... f5 {[%emt 0:00:21]} 22. Ng2 {[%emt 0:00:31]} (22. b4 $16) 22... Nh5 {[%emt 0:00:17]} 23. Qd3 {[%emt 0:01:18]} ({White should try} 23. b4 $1 $16 {[%cal Rb4a5]}) 23... Nb8 $2 {[%emt 0:00:24]} (23... b4 $11 24. Qb1 Rc6) 24. Bc1 $2 {[%emt 0:01:28]} (24. Bh6 $1 $16) 24... Bb4 {[%emt 0:00:25]} (24... b4 $5 {[%cal Ra6d3]} 25. Qd2 Rc3 $11) 25. Bd2 {[%emt 0:00:01]} (25. Bh6 $11) 25... Ba3 $1 $16 {[%emt 0:00:34]} 26. Bc1 $2 {[%emt 0:00:01]} (26. Bh6 $1 $16) 26... b4 $11 {[%emt 0:00:08]} 27. Qd2 {[%emt 0:00:19]} Nc6 {[%emt 0:00:26]} (27... Rc3 $11 {keeps the balance.} 28. Re3 Bxc1 29. Rxc1 Rxc1+ 30. Qxc1 Nc6) 28. Bb2 {[%emt 0:00:02]} (28. Rd1 $16) 28... Bxb2 {[%emt 0:01:23]} 29. Qxb2 {[%emt 0:00:01]} Na7 {[%emt 0:00:01][%cal Bc6a7,Ba7b5,Bb5c3][%mdl 32]} 30. a3 {[%emt 0:01:26]} Rc3 {[%emt 0:00:55]} 31. Re3 {[%emt 0:00:15]} Nb5 {[%emt 0:00:02][%csl LRa3,LRd4]} (31... Rfc8 $5 {[%cal Rc3c2]} 32. axb4 axb4 $11) 32. axb4 {[%emt 0:00:02]} axb4 {[%emt 0:00:02]} 33. Ra4 $2 {[%emt 0:00:38][%mdl 8192] [#] This costs White the game.} (33. Qd2 $11 {and White has nothing to worry.}) 33... Rxe3 $1 $19 {[%emt 0:00:25]} 34. Nxe3 {[%emt 0:00:04] [#]} Nc3 $1 {[%emt 0:00:01] Black is clearly winning.} 35. Ra1 {[%emt 0:00:04]} f4 {[%emt 0:00:03]} 36. gxf4 {[%emt 0:00:16]} Nxf4 {[%emt 0:00:02][%cal Bh5f4,Bf4e2,Be2d4][%mdl 32]} 37. Bf1 {[%emt 0:00:06]} Bxf1 {[%emt 0:00:07]} 38. Rxf1 {[%emt 0:00:21]} Nfe2+ {[%emt 0:00:01]} 39. Kg2 {[%emt 0:00:03]} Nxd4 {[%emt 0:00:01]} 40. Ng5 {[%emt 0:00:16]} h6 {[%emt 0:00:12]} 41. Qb1 {[%emt 0:00:08]} Nxb1 {[%emt 0:00:03] Weighted Error Value: White=1.08/Black=0.44} 0-1

[Event "MPL-4 Indian Chess Tour 2022"]
[Site "Chess24"]
[Date "2022.09.27"]
[Round "3.5"]
[White "Mitrabha, Guha"]
[Black "Mohammad Nubairshah Shaikh"]
[Result "1-0"]
[ECO "A06"]
[WhiteElo "2471"]
[BlackElo "2461"]
[Annotator "TA"]
[PlyCount "69"]
[EventDate "2022.09.29"]
[EventType "tourn (rapid)"]
[EventCountry "NET"]
[SourceTitle "playchess.com"]
[Source "ChessBase"]
[SourceQuality "1"]
[WhiteTeam "India"]
[BlackTeam "India"]
[WhiteTeamCountry "IND"]
[BlackTeamCountry "IND"]
[TimeControl "900+10"]

{[%evp 9,69,0,-10,-64,-46,-45,-66,-74,26,-34,-27,-44,16,14,2,12,10,0,245,250,293,173,162,173,551,329,335,333,470,468,472,277,469,458,516,512,712,683,679,644,987,962,999,731,945,943,931,926,1073,1046,1047,1010,1009,910,1009,968,1155,968,1125,1125,983,905]} 1. Nf3 {[%emt 0:00:00]} d5 {[%emt 0:00:00]} 2. b3 {[%emt 0:00:08]} Bg4 {[%emt 0:00:06]} 3. Bb2 {[%emt 0:00:03]} Nd7 {[%emt 0:00:02]} 4. d3 {[%emt 0:00:20]} Bxf3 {[%emt 0:00:48]} 5. gxf3 {[%emt 0:00:09]} e5 {[%emt 0:00:13]} 6. Nd2 {[%emt 0:00:15] [#] A06: Réti Opening: 1 Nf3 d5.} (6. d4 $11) 6... Bc5 $146 {[%emt 0:00:10]} ({Predecessor:} 6... Qh4 7. e3 Ngf6 8. Qe2 a5 9. O-O-O Bd6 10. f4 exf4 11. Nf3 Qh6 12. Nd4 g6 {0-1 (50) Heinig,W (2300)-Tischbierek,R (2315) Suhl 1979}) 7. e3 {[%emt 0:00:20]} Qh4 {[%emt 0:01:10] Against f4. White must now prevent ...Bxe3.} 8. Qe2 {[%emt 0:00:13] Black is slightly better.} O-O-O {[%emt 0:00:03]} (8... Ngf6 $17) 9. O-O-O {[%emt 0:00:04]} (9. Rg1 $11) 9... Ngf6 $15 {[%emt 0:00:02]} 10. Rg1 {[%emt 0:00:08]} Qxh2 {[%emt 0:01:18]} (10... g6 $15) 11. Rxg7 {[%emt 0:00:06]} Rhg8 {[%emt 0:00:01]} 12. Rxg8 {[%emt 0:02:01]} ({Reject} 12. Rxf7 Qh5 13. Rxf6 Nxf6 $15) 12... Rxg8 {[%emt 0:00:00]} 13. Kb1 {[%emt 0:00:03]} Rg1 $2 {[%emt 0:03:03] [#] White stays focused until the end.} (13... h5 $11) 14. f4 $1 $18 {[%emt 0:00:13]} e4 {[%emt 0:00:08] Against Nf3} 15. Bxf6 {[%emt 0:00:59]} (15. dxe4 $142 Qh5 16. Qxh5 Nxh5 17. exd5) 15... Nxf6 {[%emt 0:00:03]} 16. dxe4 {[%emt 0:00:01]} dxe4 {[%emt 0:00:06]} (16... Rg8 {is more resistant.} 17. exd5 Kb8) 17. Bh3+ {[%emt 0:00:25]} Kb8 {[%emt 0:00:06] [#] aiming for ...Rxd1+.} 18. Nf1 {[%emt 0:00:33][%cal Rd1d8]} Qxh3 {[%emt 0:00:27]} (18... Rxf1 {is a better defense.} 19. Qxf1 Bd6) 19. Rd8+ {[%emt 0:00:02]} Qc8 {[%emt 0:00:00]} 20. Rxc8+ {[%emt 0:00:01]} Kxc8 {[%emt 0:00:00]} 21. Kb2 {[%emt 0:00:08] White is clearly winning.} b6 {[%emt 0:01:42]} 22. Ng3 {[%emt 0:00:18] Prevents h5.} Rg2 {[%emt 0:02:14]} 23. Qf1 {[%emt 0:00:43]} Rxg3 {[%emt 0:00:44]} 24. fxg3 {[%emt 0:00:03]} Bxe3 {[%emt 0:00:01]} 25. Qh3+ {[%emt 0:00:05]} Kd8 {[%emt 0:01:12]} 26. Qf5 {[%emt 0:00:11]} Nd7 {[%emt 0:00:05]} 27. Qxe4 {[%emt 0:00:05]} Bf2 {[%emt 0:00:01]} 28. Qxh7 {[%emt 0:00:01]} Ke7 {[%emt 0:00:05]} 29. Qe4+ {[%emt 0:00:08]} Kf8 {[%emt 0:00:01]} 30. Qa8+ {[%emt 0:00:04]} Ke7 {[%emt 0:00:01]} 31. Qf3 {[%emt 0:00:06]} Bd4+ {[%emt 0:00:03]} 32. c3 {[%emt 0:00:02]} Bf6 {[%emt 0:00:01]} 33. Qe4+ {[%emt 0:00:01]} Kf8 {[%emt 0:00:02]} 34. Qa8+ {[%emt 0:00:02]} Ke7 {[%emt 0:00:02]} 35. Qxa7 {[%emt 0:00:02] Weighted Error Value: White=0.28 (precise) /Black=0.87} 1-0

[Event "MPL-4 Indian Chess Tour 2022"]
[Site "Chess24"]
[Date "2022.09.27"]
[Round "3.6"]
[White "Vaibhav, Suri"]
[Black "Mendonca, Leon Luke"]
[Result "1-0"]
[ECO "B53"]
[WhiteElo "2600"]
[BlackElo "2558"]
[Annotator "TA"]
[PlyCount "197"]
[EventDate "2022.09.29"]
[EventType "tourn (rapid)"]
[EventCountry "NET"]
[SourceTitle "playchess.com"]
[Source "ChessBase"]
[SourceQuality "1"]
[WhiteTeam "India"]
[BlackTeam "India"]
[WhiteTeamCountry "IND"]
[BlackTeamCountry "IND"]
[TimeControl "900+10"]

{[%evp 22,197,22,27,25,24,35,18,19,25,18,26,22,22,31,21,27,39,55,46,58,50,62,11,8,14,49,52,45,35,118,118,121,122,122,122,122,14,8,0,135,132,128,118,71,0,0,0,0,0,0,0,0,0,189,186,190,193,185,0,0,-39,-39,-191,-156,-596,-234,-231,0,-29989,-29980,-29977,0,0,0,0,4,0,2,8,125,123,123,123,122,0,4,0,4,4,175,122,122,122,125,125,125,125,124,124,123,122,122,121,122,122,121,114,106,106,106,0,114,0,122,0,122,0,121,0,77,80,70,63,70,77,121,114,106,100,106,91,109,114,114,91,100,99,93,91,114,99,99,99,109,109,134,34,34,34,34,34,34,34,34,8,34,34,29958,29960,29959,29960,29960,29957,29961,29962,29965,29966,29966,29967,29967,29968,29967,29968,29968,29969,29969,29969]} 1. e4 {[%emt 0:00:00]} c5 {[%emt 0:00:00]} 2. Nf3 {[%emt 0:00:02]} d6 {[%emt 0:00:01]} 3. Nc3 {[%emt 0:00:00]} Nf6 {[%emt 0:00:01]} 4. d4 {[%emt 0:00:01]} cxd4 {[%emt 0:00:01]} 5. Qxd4 {[%emt 0:00:01]} Nc6 {[%emt 0:00:07]} 6. Qd3 {[%emt 0:00:00]} g6 {[%emt 0:00:24]} 7. Nd5 {[%emt 0:00:02]} Bg7 {[%emt 0:00:08]} 8. c3 {[%emt 0:00:01]} O-O {[%emt 0:01:10]} 9. Bg5 {[%emt 0:00:01]} Nxd5 {[%emt 0:02:01]} 10. exd5 {[%emt 0:00:03]} Ne5 {[%emt 0:00:05]} 11. Nxe5 {[%emt 0:00:01]} Bxe5 {[%emt 0:00:00]} 12. Be2 {[%emt 0:00:03]} Bd7 {[%emt 0:01:43]} 13. O-O {[%emt 0:01:41]} Bf6 {[%emt 0:00:17]} 14. h4 {[%emt 0:02:14]} Bxg5 {[%emt 0:03:21]} 15. hxg5 {[%emt 0:00:00]} f6 {[%emt 0:00:01]} 16. gxf6 {[%emt 0:00:20]} exf6 {[%emt 0:00:10]} 17. Rfe1 {[%emt 0:00:03]} Qb6 {[%emt 0:00:15]} 18. Qd2 {[%emt 0:01:37]} Rae8 {[%emt 0:00:05]} 19. b4 {[%emt 0:00:21]} Re5 {[%emt 0:00:38]} 20. c4 {[%emt 0:01:24]} Rfe8 {[%emt 0:00:14]} 21. Rac1 {[%emt 0:00:17]} Qd8 {[%emt 0:02:22]} 22. Bd3 {[%emt 0:01:54]} (22. c5 $14) 22... Rxe1+ $11 {[%emt 0:00:31]} 23. Rxe1 {[%emt 0:00:00]} b6 {[%emt 0:00:03]} 24. Rc1 {[%emt 0:01:38]} Qe7 {[%emt 0:00:09]} 25. Bf1 {[%emt 0:00:25]} Bf5 {[%emt 0:01:26]} ({Better is} 25... g5 $14) 26. c5 $1 $16 {[%emt 0:03:01]} bxc5 {[%emt 0:00:04]} 27. bxc5 {[%emt 0:00:02]} dxc5 {[%emt 0:00:01]} 28. d6 {[%emt 0:00:04]} Qe5 {[%emt 0:00:33]} 29. Bc4+ {[%emt 0:00:05]} (29. Bb5 $16 Rd8 30. d7) 29... Kg7 $11 {[%emt 0:00:32]} 30. Rd1 {[%emt 0:00:03]} Rd8 {[%emt 0:00:52]} (30... Bg4 $11 {keeps the balance.} 31. Bb5 (31. d7 Rd8 $15) 31... Bxd1 32. Bxe8 Qxe8 33. Qxd1 (33. d7 Qd8 $11) 33... Qd7) 31. Qa5 $16 {[%emt 0:01:12]} Rd7 {[%emt 0:00:46]} (31... Rxd6 $2 32. Qc7+ Rd7 33. Rxd7+ Bxd7 34. Qxd7+ Kh6 35. Qxa7 $18) 32. Bb5 $1 {[%emt 0:00:59]} c4 {[%emt 0:00:08]} 33. Qa6 {[%emt 0:00:10]} (33. Qb4 $1 $16 Rb7 34. d7 Rxb5 35. Qxc4 (35. Qxb5 Qxb5 36. d8=Q Qe5 $14) 35... Bxd7 36. Rxd7+ Kh6 37. Qh4+ Qh5 38. Qf4+ Qg5 39. Qh2+ Qh5 40. Qxh5+ (40. Qf4+ Qg5 $11) 40... Rxh5 41. Rxa7) 33... Qe2 {[%emt 0:01:07]} 34. Rf1 {[%emt 0:01:11]} Bd3 {[%emt 0:00:16]} 35. Rc1 {[%emt 0:00:11]} Qd2 {[%emt 0:00:33]} 36. Ra1 {[%emt 0:00:25]} Qc3 {[%emt 0:00:47]} 37. Rd1 {[%emt 0:00:11]} Be2 $2 {[%emt 0:00:09]} (37... Qc2 $1 $11 38. Rxd3 cxd3 39. Bxd7 d2) 38. Qc8 $18 {[%emt 0:01:14]} (38. Bxd7 Bxd1 39. Qxa7 Qe1+ 40. Kh2 Qe5+ 41. Kg1 Kh6 $11) 38... Bxd1 {[%emt 0:00:01]} 39. Qxd7+ {[%emt 0:00:02]} Kh6 {[%emt 0:00:00]} 40. Qe7 $2 {[%emt 0:00:32]} (40. Qxa7 Qe1+ 41. Kh2 Qe5+ 42. Kg1 Qe1+ 43. Kh2 Qe5+ 44. Kg1 Qe1+ $11) (40. Qe6 $18 {Hoping for d7.} Qd2 41. d7 (41. Bxc4 Ba4 $11) (41. Qxc4 Qxd6 42. Qh4+ Kg7 $17) (41. Qxf6 c3 $16)) 40... Bg4 $11 {[%emt 0:00:27]} 41. f3 {[%emt 0:00:11]} Qd4+ {[%emt 0:00:15]} 42. Kh1 $2 {[%emt 0:00:02]} (42. Kh2 $15 c3 43. Bd3 (43. fxg4 $2 c2 $19)) 42... c3 $1 $19 {[%emt 0:00:11]} 43. Qc7 $2 {[%emt 0:00:25]} (43. fxg4 $2 c2 44. Qc7 Qa1+ 45. Kh2 c1=Q $19) (43. Qe1 $17 {is tougher.} a6 44. Bc6) 43... Bxf3 $2 {[%emt 0:00:13]} (43... Bf5 44. Ba4 Qxa4 45. Qxc3 Qd1+ 46. Kh2 Qxd6+ 47. Kg1 g5) 44. d7 $19 {[%emt 0:00:03] [#]} Bxg2+ $2 {[%emt 0:00:10]} (44... Qd2 $1 $19 {[%csl Gf3][%cal Rd2g2]} 45. gxf3 (45. Bf1 c2) 45... c2) 45. Kh2 $2 {[%emt 0:00:06][%mdl 8192]} (45. Kxg2 $11 Qe4+ 46. Kf2 Qd4+ 47. Kf1 (47. Kg3 Qe3+ 48. Kg2 Qe4+ 49. Kf2 Qd4+ 50. Kf1 Qd1+ 51. Kg2 c2 $14) 47... Qd1+ 48. Kg2) 45... Bf3 {[%emt 0:00:11]} 46. Kg3 {[%emt 0:00:13]} Qg4+ $2 {[%emt 0:00:09]} (46... Bd5 {mates} 47. Qf4+ Qxf4+ 48. Kxf4 c2 49. Ke3 c1=Q+ 50. Kd4 Qd2+ 51. Bd3 Qa5 52. d8=B Qxd8 53. Bc2 Bxa2+ 54. Kc3 Qa5+ 55. Kd3 Qc5 56. Kd2 Qd4+ 57. Kc1 Qc3 58. Kd1 Bd5 59. Be4 Bxe4 60. Ke2 Bd5 61. Kf2 Qd2+ 62. Kf1 f5 63. Kg1 Qg2#) 47. Kf2 $11 {[%emt 0:00:00]} Qg2+ {[%emt 0:00:02]} 48. Ke3 {[%emt 0:00:01]} Qd2+ {[%emt 0:00:17]} (48... Bd5 49. Qxc3 Qg3+ 50. Kd2 $16) 49. Kxf3 {[%emt 0:00:01]} c2 {[%emt 0:00:01]} 50. d8=Q {[%emt 0:00:10]} Qxd8 {[%emt 0:00:01]} (50... Qd1+ $1 $11 {remains equal.} 51. Be2 Qxd8 52. Qxd8 c1=Q) 51. Qxd8 $16 {[%emt 0:00:28]} c1=Q {[%emt 0:00:02]} 52. Qxf6 {[%emt 0:00:15]} Qh1+ {[%emt 0:00:32]} 53. Ke3 {[%emt 0:00:17]} (53. Kf2 $16 {And now Qf4+ would win.} Qh2+ 54. Ke3) 53... Qc1+ $1 $11 {[%emt 0:00:11]} 54. Kf2 {[%emt 0:00:05]} Qc2+ {[%emt 0:00:07]} 55. Kg3 {[%emt 0:00:06]} Qc7+ $2 {[%emt 0:00:15]} ({But not} 55... Qc5 56. Qf4+ Qg5+ 57. Qxg5+ Kxg5 58. Bd7 $16) (55... Qxa2 $11 {and Black is okay.} 56. Qf8+ Kh5) 56. Kg4 {[%emt 0:00:22]} (56. Qf4+ $18 Qxf4+ 57. Kxf4) 56... Qc8+ $16 {[%emt 0:00:11]} 57. Kh4 {[%emt 0:00:01]} Qb8 {[%emt 0:00:10]} 58. Qg5+ {[%emt 0:00:12]} Kg7 {[%emt 0:00:02]} 59. Qe7+ {[%emt 0:00:01]} Kh6 {[%emt 0:00:05]} 60. Qe3+ {[%emt 0:00:06]} Kg7 {[%emt 0:00:03]} 61. Qd4+ {[%emt 0:00:05]} Kh6 {[%emt 0:00:05]} 62. Qd2+ {[%emt 0:00:02]} Kg7 {[%emt 0:00:05]} 63. Qc3+ {[%emt 0:00:32]} Kh6 {[%emt 0:00:03]} 64. Qc1+ {[%emt 0:00:04]} Kg7 {[%emt 0:00:04]} 65. Qb2+ {[%emt 0:00:03]} Kh6 {[%emt 0:00:04]} 66. Qd2+ {[%emt 0:00:14]} Kg7 {[%emt 0:00:01]} 67. Qd4+ {[%emt 0:00:05]} Kh6 {[%emt 0:00:01]} 68. Qe3+ {[%emt 0:00:00]} Kg7 {[%emt 0:00:01]} 69. Qe7+ {[%emt 0:00:15]} Kh6 {[%emt 0:00:01]} 70. Qg5+ {[%emt 0:00:04]} Kg7 {[%emt 0:00:01]} 71. Kh3 $1 {[%emt 0:00:05]} Qc8+ {[%emt 0:00:14]} 72. Qg4 $1 {[%emt 0:00:20]} Qc3+ {[%emt 0:00:08]} 73. Qg3 {[%emt 0:00:01]} Qd4 {[%emt 0:00:21]} 74. Bd3 {[%emt 0:00:27]} Qd7+ {[%emt 0:00:11]} 75. Kh2 {[%emt 0:00:01]} Qd4 {[%emt 0:00:11]} 76. Qf3 {[%emt 0:00:32]} Qb2+ {[%emt 0:00:14] [#]} 77. Qe2 $1 {[%emt 0:00:02]} Qf6 {[%emt 0:00:57]} 78. Be4 {[%emt 0:00:06]} Qe5+ {[%emt 0:00:08]} 79. Kg2 {[%emt 0:00:01]} Qg5+ {[%emt 0:00:02]} 80. Kf1 {[%emt 0:00:05]} Qf6+ {[%emt 0:00:04]} 81. Bf3 {[%emt 0:00:04]} h5 {[%emt 0:00:39]} 82. Qf2 {[%emt 0:00:17]} Kh6 {[%emt 0:00:20]} 83. Qe3+ {[%emt 0:00:06]} g5 {[%emt 0:00:13]} 84. Kg2 {[%emt 0:00:20]} ({White should play} 84. a3 $16) 84... Qb2+ $1 $14 {[%emt 0:00:07]} 85. Qe2 {[%emt 0:00:03]} Qxe2+ {[%emt 0:00:16]} 86. Bxe2 {[%emt 0:00:00]} g4 $1 {[%emt 0:00:01]} 87. Kf2 {[%emt 0:00:08]} ({Don't play} 87. Kg3 $6 Kg5 88. Bb5 h4+ 89. Kf2 Kf4 $16) 87... Kg5 {[%emt 0:00:01]} 88. Ke3 {[%emt 0:00:00]} Kf5 {[%emt 0:00:19]} (88... h4 $2 89. Bd3 $18) 89. Bb5 {[%emt 0:00:04]} h4 $2 {[%emt 0:00:16][%mdl 8192] [#]} (89... Kg5 $14) 90. Bd7+ $1 {[%emt 0:00:01]} Kg5 {[%emt 0:00:01]} 91. Bc8 {[%emt 0:00:33]} h3 {[%emt 0:00:10]} 92. Bd7 {[%emt 0:00:09]} Kh4 {[%emt 0:00:17]} 93. Kf2 {[%emt 0:00:01]} a5 {[%emt 0:00:10]} 94. a4 {[%emt 0:00:03]} g3+ {[%emt 0:00:15]} 95. Kf3 {[%emt 0:00:02]} h2 {[%emt 0:00:07]} 96. Kg2 {[%emt 0:00:01]} Kg5 {[%emt 0:00:01]} 97. Bc6 {[%emt 0:00:12]} Kg4 {[%emt 0:00:03]} 98. Bb7 {[%emt 0:00:04]} Kh4 {[%emt 0:00:40]} 99. Bf3 {[%emt 0:00:06]} 1-0

[Event "MPL-4 Indian Chess Tour 2022"]
[Site "Chess24"]
[Date "2022.09.27"]
[Round "3.7"]
[White "Bharath Subramaniyam H"]
[Black "Ganguly, Surya Shekhar"]
[Result "1-0"]
[ECO "D00"]
[WhiteElo "2495"]
[BlackElo "2589"]
[Annotator "TA"]
[PlyCount "77"]
[EventDate "2022.09.29"]
[EventType "tourn (rapid)"]
[EventCountry "NET"]
[SourceTitle "playchess.com"]
[Source "ChessBase"]
[SourceQuality "1"]
[WhiteTeam "India"]
[BlackTeam "India"]
[WhiteTeamCountry "IND"]
[BlackTeamCountry "IND"]
[TimeControl "900+10"]

{[%evp 9,77,20,30,-27,-11,-26,-18,-64,-47,-68,-37,-51,-21,-33,-21,-50,-52,-56,-20,-19,-13,-17,-8,-19,4,0,26,26,26,27,38,33,44,0,12,10,9,-64,-58,-55,-10,-10,-8,-24,4,4,12,12,11,10,284,274,375,332,377,365,675,658,1153,1146,1100,1444,1399,1424,1343,1319,1470,1275,4132,833]} 1. d4 {[%emt 0:00:00]} d5 {[%emt 0:00:00]} 2. Nc3 {[%emt 0:00:05]} e6 {[%emt 0:00:23]} 3. Bf4 {[%emt 0:00:28]} c5 {[%emt 0:00:38]} 4. e4 {[%emt 0:00:25]} cxd4 {[%emt 0:00:14]} 5. Qxd4 {[%emt 0:00:05]} Nc6 {[%emt 0:00:05]} 6. Bb5 {[%emt 0:00:14] D00: 1 d4 d5: Unusual lines.} (6. Qa4 $142 Bb4 7. exd5 exd5 8. Bb5 Bxc3+ 9. bxc3) 6... Bd7 {[%emt 0:00:16]} 7. Bxc6 {[%emt 0:02:09]} bxc6 {[%emt 0:00:03] [#]} 8. exd5 $146 {[%emt 0:02:37]} (8. Nf3 $11) ({Predecessor:} 8. e5 Rb8 9. Rb1 Qb6 10. Qxb6 axb6 11. Nf3 Ra8 12. a3 c5 13. O-O Bc6 14. Rfe1 {0-1 (46) Vishwa,V (2034)-Celik,H (2173) Novi Sad 2021}) 8... cxd5 $15 {[%emt 0:00:02]} 9. Nf3 {[%emt 0:00:01]} Qb6 {[%emt 0:00:25]} 10. O-O {[%emt 0:00:48]} Nf6 {[%emt 0:00:09][%cal Bg8f6,Bf6d7,Bd7c5,Bc5a4][%mdl 32]} 11. Qxb6 {[%emt 0:01:06]} axb6 {[%emt 0:00:00]} 12. a4 {[%emt 0:00:08]} Bc5 $1 {[%emt 0:00:42]} 13. Ne5 {[%emt 0:02:33]} O-O {[%emt 0:00:10]} 14. Nb5 {[%emt 0:00:44]} Rfc8 {[%emt 0:02:21][%cal Oa8a4]} 15. Nxd7 {[%emt 0:00:50]} Nxd7 {[%emt 0:00:00]} 16. c3 {[%emt 0:00:07]} e5 {[%emt 0:00:03]} 17. Bg3 {[%emt 0:00:17]} f5 {[%emt 0:00:51]} 18. Rfd1 {[%emt 0:00:54]} f4 {[%emt 0:02:50]} 19. Bh4 {[%emt 0:00:03] [#] Threatens to win with b4.} Bf8 {[%emt 0:02:50]} 20. Rxd5 {[%emt 0:01:34]} Nc5 {[%emt 0:00:01]} 21. Rxe5 {[%emt 0:00:45]} (21. b4 $5 {[%cal Rb4c5]} Ne4 22. f3 (22. Rxe5 Nxc3 23. Nxc3 Rxc3 $11) 22... Nxc3 23. Nxc3 Rxc3 24. Be1 $14) 21... Rxa4 {[%emt 0:00:02]} 22. Rxa4 {[%emt 0:00:17]} Nxa4 {[%emt 0:00:00]} 23. Re2 {[%emt 0:00:43]} (23. Be7 $11) 23... Rc5 {[%emt 0:01:06]} 24. c4 {[%emt 0:00:22]} g5 {[%emt 0:00:19]} (24... Rxc4 $5 {[%cal Rc4c1]} 25. f3 Rc1+ 26. Re1 Rxe1+ 27. Bxe1 Nxb2 $17) 25. b3 {[%emt 0:00:03][%cal Oe2c2]} gxh4 {[%emt 0:00:21]} 26. Kf1 {[%emt 0:00:19]} Rxb5 {[%emt 0:02:10]} 27. cxb5 {[%emt 0:00:00]} Nc5 {[%emt 0:00:00]} 28. b4 {[%emt 0:00:08][%mdl 1024] White has compensation.} f3 {[%emt 0:00:32]} 29. gxf3 {[%emt 0:00:18]} Nd3 {[%emt 0:00:01][%mdl 8192] [#] Loses the game.} (29... Nd7 $1 $11 {and Black has nothing to worry.}) 30. Re6 $18 {[%emt 0:00:04]} Bxb4 {[%emt 0:01:15]} 31. Rxb6 {[%emt 0:00:03]} Kf7 {[%emt 0:00:12]} 32. Rh6 {[%emt 0:00:23]} Ke7 $2 {[%emt 0:00:09]} (32... Kg7 33. Rxh4 Be7) 33. Rxh4 {[%emt 0:00:24] White is clearly winning.} Bc5 {[%emt 0:00:07] Prevents Rd4.} 34. Rxh7+ {[%emt 0:00:18]} Kd6 {[%emt 0:00:01]} 35. h4 {[%emt 0:00:02]} Nf4 {[%emt 0:00:18]} 36. h5 {[%emt 0:00:08]} Bd4 {[%emt 0:00:01]} 37. h6 {[%emt 0:00:10]} Kc5 {[%emt 0:00:01]} 38. Rd7 {[%emt 0:00:42]} Be5 {[%emt 0:01:13]} 39. h7 {[%emt 0:00:05] Weighted Error Value: White=0.14 (very precise) /Black=0.53} (39. Rf7 $142 Nd3 40. Rf5) 1-0